[Event "*** Titled Tuesday Blitz"]
[Site "Chess.com"]
[Date "2020.04.21"]
[Round "6"]
[White "velemajstor767276"]
[Black "checkmatequen"]
[Result "1-0"]
[WhiteElo "2504"]
[BlackElo "2229"]
[TimeControl "180+1"]
[EndTime "11:08:29 PDT"]
[Termination "velemajstor767276 won by checkmate"]

1. d4 {[%clk 0:03:00.9]} 1... Nf6 {[%clk 0:02:59.3]} 2. Bg5 {[%clk 0:03:01]}
2... e6 {[%clk 0:02:57.5]} 3. e4 {[%clk 0:02:59.9]} 3... h6 {[%clk 0:02:57.6]}
4. Bxf6 {[%clk 0:03:00.3]} 4... Qxf6 {[%clk 0:02:58.4]} 5. c3 {[%clk 0:03:01.2]}
5... d6 {[%clk 0:02:55.6]} 6. Bd3 {[%clk 0:03:01.5]} 6... g6 {[%clk 0:02:53.7]}
7. Ne2 {[%clk 0:03:02]} 7... Bg7 {[%clk 0:02:53.6]} 8. O-O {[%clk 0:03:02.7]}
8... e5 {[%clk 0:02:53.1]} 9. f4 {[%clk 0:03:03.5]} 9... Qe7 {[%clk 0:02:49]}
10. Nd2 {[%clk 0:02:53]} 10... exf4 {[%clk 0:02:35.6]} 11. Nxf4 {[%clk
0:02:51.6]} 11... c6 {[%clk 0:02:35]} 12. Qf3 {[%clk 0:02:42.5]} 12... O-O
{[%clk 0:02:29.4]} 13. Rae1 {[%clk 0:02:39.7]} 13... h5 {[%clk 0:02:15.1]} 14.
Bc4 {[%clk 0:02:36.2]} 14... Qg5 {[%clk 0:02:09.3]} 15. h4 {[%clk 0:02:30.4]}
15... Qf6 {[%clk 0:01:54.1]} 16. Qg3 {[%clk 0:02:23.3]} 16... Kh7 {[%clk
0:01:48.6]} 17. Nxh5 {[%clk 0:02:08.6]} 17... gxh5 {[%clk 0:01:45.9]} 18. Rxf6
{[%clk 0:02:07.9]} 18... Bxf6 {[%clk 0:01:46.8]} 19. Rf1 {[%clk 0:02:04.9]}
19... Nd7 {[%clk 0:01:32.8]} 20. Qxd6 {[%clk 0:02:03.1]} 20... Rg8 {[%clk
0:01:21.6]} 21. Rxf6 {[%clk 0:01:59.4]} 21... Nxf6 {[%clk 0:01:22.5]} 22. Qxf6
{[%clk 0:01:59.6]} 22... Bg4 {[%clk 0:01:16]} 23. Bxf7 {[%clk 0:01:55.7]} 23...
Rg7 {[%clk 0:01:12.4]} 24. e5 {[%clk 0:01:53.8]} 24... Rf8 {[%clk 0:01:10.8]}
25. e6 {[%clk 0:01:46.7]} 25... Bxe6 {[%clk 0:01:06.2]} 26. Bg6+ {[%clk
0:01:45.5]} 26... Rxg6 {[%clk 0:01:01.1]} 27. Qxf8 {[%clk 0:01:45.3]} 27... Bd5
{[%clk 0:01:01.1]} 28. Nf3 {[%clk 0:01:42.1]} 28... Rg7 {[%clk 0:00:59.5]} 29.
Ng5+ {[%clk 0:01:40.3]} 29... Kg6 {[%clk 0:00:57.4]} 30. Qe8+ {[%clk 0:01:36.6]}
30... Kf6 {[%clk 0:00:55.6]} 31. Qe5+ {[%clk 0:01:35.4]} 31... Kg6 {[%clk
0:00:53.8]} 32. b3 {[%clk 0:01:34]} 32... b5 {[%clk 0:00:50.7]} 33. Kf2 {[%clk
0:01:24.2]} 33... Rg8 {[%clk 0:00:47.7]} 34. Qe7 {[%clk 0:01:20.7]} 34... Kf5
{[%clk 0:00:45.8]} 35. g3 {[%clk 0:01:03]} 35... Rg6 {[%clk 0:00:31.4]} 36. Qh7
{[%clk 0:00:58.1]} 36... Kf6 {[%clk 0:00:25.4]} 37. Qxh5 {[%clk 0:00:58.2]}
37... Kg7 {[%clk 0:00:24.3]} 38. Qh7+ {[%clk 0:00:57.5]} 38... Kf6 {[%clk
0:00:24.6]} 39. Qxa7 {[%clk 0:00:54.8]} 39... Rg7 {[%clk 0:00:23.9]} 40. Qb8
{[%clk 0:00:51.2]} 40... Kg6 {[%clk 0:00:23.7]} 41. Qd6+ {[%clk 0:00:49.9]}
41... Kh5 {[%clk 0:00:23.3]} 42. Qf4 {[%clk 0:00:45.8]} 42... Rg6 {[%clk
0:00:17.9]} 43. g4+ {[%clk 0:00:42.4]} 43... Kxh4 {[%clk 0:00:17.7]} 44. Nf3+
{[%clk 0:00:41.5]} 44... Kh3 {[%clk 0:00:16]} 45. Qg3# {[%clk 0:00:36.9]} 1-0

[Event "*** Titled Tuesday Blitz"]
[Site "Chess.com"]
[Date "2020.04.21"]
[Round "6"]
[White "kosmeg"]
[Black "pgradalski"]
[Result "0-1"]
[WhiteElo "2382"]
[BlackElo "2226"]
[TimeControl "180+1"]
[EndTime "11:08:29 PDT"]
[Termination "pgradalski won on time"]

1. Nf3 {[%clk 0:03:00.9]} 1... d5 {[%clk 0:02:59.3]} 2. g3 {[%clk 0:03:00.7]}
2... Nf6 {[%clk 0:02:58.6]} 3. Bg2 {[%clk 0:03:01]} 3... c6 {[%clk 0:02:54.7]}
4. c4 {[%clk 0:03:01.3]} 4... dxc4 {[%clk 0:02:53.1]} 5. O-O {[%clk 0:03:01.3]}
5... Be6 {[%clk 0:02:47.1]} 6. Ng5 {[%clk 0:02:54.6]} 6... Qd7 {[%clk
0:02:33.2]} 7. Na3 {[%clk 0:02:44]} 7... h6 {[%clk 0:02:22.9]} 8. Nxe6 {[%clk
0:02:43.8]} 8... Qxe6 {[%clk 0:02:22.9]} 9. Qc2 {[%clk 0:02:44]} 9... Qxe2
{[%clk 0:02:13.4]} 10. Nxc4 {[%clk 0:02:40.6]} 10... Nbd7 {[%clk 0:02:06.7]} 11.
b3 {[%clk 0:02:30.6]} 11... e6 {[%clk 0:01:59.1]} 12. Bb2 {[%clk 0:02:26.9]}
12... Be7 {[%clk 0:01:46.4]} 13. Rfe1 {[%clk 0:02:26.5]} 13... Qh5 {[%clk
0:01:40.3]} 14. Ne5 {[%clk 0:02:13.9]} 14... O-O {[%clk 0:01:22.1]} 15. Bf3
{[%clk 0:02:12]} 15... Qh3 {[%clk 0:01:10.3]} 16. Bg2 {[%clk 0:02:00.4]} 16...
Qh5 {[%clk 0:01:09.4]} 17. h4 {[%clk 0:02:00.2]} 17... Nxe5 {[%clk 0:01:03.9]}
18. Rxe5 {[%clk 0:02:01.1]} 18... Qg4 {[%clk 0:01:02.4]} 19. Rae1 {[%clk
0:01:49.5]} 19... Rfd8 {[%clk 0:00:56.4]} 20. h5 {[%clk 0:01:34.7]} 20... Bb4
{[%clk 0:00:45.1]} 21. Bc3 {[%clk 0:00:08.6]} 21... Bxc3 {[%clk 0:00:33.3]} 22.
dxc3 {[%clk 0:00:09.5]} 22... Nxh5 {[%clk 0:00:20.9]} 23. R1e4 {[%clk
0:00:09.1]} 23... Qg6 {[%clk 0:00:20.4]} 24. Qe2 {[%clk 0:00:06.8]} 24... Nf6
{[%clk 0:00:18.2]} 25. Rb4 {[%clk 0:00:05]} 25... b6 {[%clk 0:00:09]} 26. Bxc6
{[%clk 0:00:03.7]} 26... Rac8 {[%clk 0:00:09]} 0-1

[Event "*** Titled Tuesday Blitz"]
[Site "Chess.com"]
[Date "2020.04.21"]
[Round "6"]
[White "qqwow"]
[Black "AsaHoffmann"]
[Result "0-1"]
[WhiteElo "2466"]
[BlackElo "2349"]
[TimeControl "180+1"]
[EndTime "11:08:30 PDT"]
[Termination "AsaHoffmann won by resignation"]

1. d4 {[%clk 0:02:55.3]} 1... Nf6 {[%clk 0:02:58.7]} 2. c4 {[%clk 0:02:52.8]}
2... c5 {[%clk 0:02:58.2]} 3. d5 {[%clk 0:02:48.3]} 3... e5 {[%clk 0:02:57.8]}
4. Nc3 {[%clk 0:02:47.6]} 4... d6 {[%clk 0:02:57.5]} 5. e4 {[%clk 0:02:48.2]}
5... Be7 {[%clk 0:02:57.2]} 6. h3 {[%clk 0:02:48.3]} 6... Nbd7 {[%clk
0:02:56.7]} 7. g4 {[%clk 0:02:48.5]} 7... Nf8 {[%clk 0:02:55.7]} 8. Nge2 {[%clk
0:02:48.6]} 8... Ng6 {[%clk 0:02:52.4]} 9. Ng3 {[%clk 0:02:47.4]} 9... Nf4
{[%clk 0:02:49.1]} 10. Be3 {[%clk 0:02:44.4]} 10... a6 {[%clk 0:02:45.6]} 11.
Qc2 {[%clk 0:02:44]} 11... g6 {[%clk 0:02:43]} 12. O-O-O {[%clk 0:02:42.9]}
12... Bd7 {[%clk 0:02:41.7]} 13. Bxf4 {[%clk 0:02:38.3]} 13... exf4 {[%clk
0:02:41.1]} 14. Nge2 {[%clk 0:02:36.8]} 14... g5 {[%clk 0:02:38.5]} 15. h4
{[%clk 0:02:28]} 15... f3 {[%clk 0:02:32.2]} 16. Ng3 {[%clk 0:02:13.7]} 16...
Nxg4 {[%clk 0:02:31.6]} 17. hxg5 {[%clk 0:02:08.6]} 17... Bxg5+ {[%clk
0:02:31.1]} 18. Kb1 {[%clk 0:02:08.9]} 18... Qe7 {[%clk 0:02:20.9]} 19. e5
{[%clk 0:01:53.9]} 19... Nxe5 {[%clk 0:02:19.6]} 20. Nce4 {[%clk 0:01:53.7]}
20... O-O-O {[%clk 0:02:09.3]} 21. Bh3 {[%clk 0:01:45.3]} 21... h6 {[%clk
0:02:02.9]} 22. Bxd7+ {[%clk 0:01:44.1]} 22... Qxd7 {[%clk 0:02:02.3]} 23. a3
{[%clk 0:01:42.7]} 23... Rdf8 {[%clk 0:01:51.9]} 24. b4 {[%clk 0:01:24.9]} 24...
cxb4 {[%clk 0:01:50.1]} 25. axb4 {[%clk 0:01:24.6]} 25... Kb8 {[%clk 0:01:49.9]}
26. c5 {[%clk 0:01:16.9]} 26... dxc5 {[%clk 0:01:42.7]} 27. bxc5 {[%clk
0:01:08.2]} 27... Qb5+ {[%clk 0:01:41.6]} 28. Ka2 {[%clk 0:01:03]} 28... Rd8
{[%clk 0:01:29.4]} 29. Nf5 {[%clk 0:00:55.6]} 29... Nc4 {[%clk 0:01:13.8]} 30.
Qb3 {[%clk 0:00:20.6]} 30... Rhe8 {[%clk 0:01:05.2]} 31. Qxb5 {[%clk 0:00:20.3]}
31... axb5 {[%clk 0:01:05]} 32. Ned6 {[%clk 0:00:20.2]} 32... Re2+ {[%clk
0:01:01.8]} 33. Kb3 {[%clk 0:00:19.7]} 33... Nd2+ {[%clk 0:01:00.9]} 34. Kb4
{[%clk 0:00:18.8]} 34... Ne4 {[%clk 0:00:57.9]} 35. Kxb5 {[%clk 0:00:18.4]}
35... Nxf2 {[%clk 0:00:55.4]} 36. Nc4 {[%clk 0:00:13.4]} 36... Nxh1 {[%clk
0:00:54]} 37. Rxh1 {[%clk 0:00:13.2]} 37... f2 {[%clk 0:00:53.9]} 38. Nfd6
{[%clk 0:00:14.1]} 38... Re1 {[%clk 0:00:52.3]} 39. Rh3 {[%clk 0:00:14.3]} 39...
f1=Q {[%clk 0:00:50.2]} 40. Rb3 {[%clk 0:00:13.8]} 40... Rb1 {[%clk 0:00:49]}
41. Rb4 {[%clk 0:00:13.5]} 41... Rxb4+ {[%clk 0:00:48]} 42. Kxb4 {[%clk
0:00:14.4]} 42... Be7 {[%clk 0:00:47.5]} 43. Nb5 {[%clk 0:00:14.4]} 43... Qf2
{[%clk 0:00:46.4]} 44. d6 {[%clk 0:00:14.8]} 44... Bf8 {[%clk 0:00:45.8]} 45.
Nb6 {[%clk 0:00:14.1]} 45... h5 {[%clk 0:00:44.6]} 46. Nc3 {[%clk 0:00:14.3]}
46... Bxd6 {[%clk 0:00:43.5]} 47. cxd6 {[%clk 0:00:14.1]} 47... Qxb6+ {[%clk
0:00:42.7]} 48. Kc4 {[%clk 0:00:13.8]} 0-1

[Event "*** Titled Tuesday Blitz"]
[Site "Chess.com"]
[Date "2020.04.21"]
[Round "6"]
[White "Justinz"]
[Black "mortngabriel"]
[Result "1-0"]
[WhiteElo "2306"]
[BlackElo "2438"]
[TimeControl "180+1"]
[EndTime "11:08:30 PDT"]
[Termination "Justinz won by resignation"]

1. e4 {[%clk 0:02:57.2]} 1... c5 {[%clk 0:03:00.2]} 2. Nf3 {[%clk 0:02:56.5]}
2... a6 {[%clk 0:03:00.5]} 3. d4 {[%clk 0:02:56]} 3... cxd4 {[%clk 0:03:01.4]}
4. Nxd4 {[%clk 0:02:56.2]} 4... Nf6 {[%clk 0:02:59.8]} 5. Nc3 {[%clk 0:02:55.2]}
5... e5 {[%clk 0:02:58.6]} 6. Nb3 {[%clk 0:02:41]} 6... Bb4 {[%clk 0:02:57.3]}
7. Bg5 {[%clk 0:02:38.2]} 7... h6 {[%clk 0:02:51]} 8. Bxf6 {[%clk 0:02:36.3]}
8... Bxc3+ {[%clk 0:02:49.8]} 9. bxc3 {[%clk 0:02:35.4]} 9... Qxf6 {[%clk
0:02:50.7]} 10. Bc4 {[%clk 0:02:30.5]} 10... Qg6 {[%clk 0:02:27]} 11. Qf3 {[%clk
0:02:27.2]} 11... O-O {[%clk 0:02:20.7]} 12. O-O {[%clk 0:02:25.3]} 12... b5
{[%clk 0:02:08.2]} 13. Bd5 {[%clk 0:02:23.4]} 13... Ra7 {[%clk 0:02:02.4]} 14.
a4 {[%clk 0:02:23.2]} 14... Rc7 {[%clk 0:01:58]} 15. axb5 {[%clk 0:02:21.6]}
15... axb5 {[%clk 0:01:58.9]} 16. Ra5 {[%clk 0:01:59]} 16... Qb6 {[%clk
0:01:48.1]} 17. Qd3 {[%clk 0:01:49.5]} 17... Ba6 {[%clk 0:01:06]} 18. Rfa1
{[%clk 0:01:47.3]} 18... Rfc8 {[%clk 0:01:05.4]} 19. Qf3 {[%clk 0:01:35.6]}
19... d6 {[%clk 0:01:03.1]} 20. h3 {[%clk 0:01:31.7]} 20... Bb7 {[%clk
0:00:59.3]} 21. Qd3 {[%clk 0:01:06.1]} 21... Rxc3 {[%clk 0:00:56.6]} 22. Qxb5
{[%clk 0:01:05.3]} 22... Qxb5 {[%clk 0:00:41.6]} 23. Rxb5 {[%clk 0:01:04.4]}
23... Bxd5 {[%clk 0:00:39.6]} 24. Rxd5 {[%clk 0:01:04]} 24... Rxc2 {[%clk
0:00:29]} 25. Rxd6 {[%clk 0:01:02.8]} 25... Nc6 {[%clk 0:00:29.9]} 26. Rd7
{[%clk 0:00:34.6]} 26... Rb2 {[%clk 0:00:28.6]} 27. Nc5 {[%clk 0:00:26.4]} 27...
Rb5 {[%clk 0:00:10.7]} 28. Nd3 {[%clk 0:00:24.6]} 28... Rb3 {[%clk 0:00:10.4]}
29. Rc1 {[%clk 0:00:22.3]} 29... Rd8 {[%clk 0:00:08.3]} 30. Nxe5 {[%clk
0:00:19.3]} 30... Rxd7 {[%clk 0:00:07.2]} 31. Nxd7 {[%clk 0:00:19.3]} 31... Nd4
{[%clk 0:00:06.9]} 32. Rc8+ {[%clk 0:00:18.1]} 32... Kh7 {[%clk 0:00:06.4]} 33.
Nf8+ {[%clk 0:00:18.1]} 33... Kg8 {[%clk 0:00:06.8]} 34. Ne6+ {[%clk 0:00:18.4]}
1-0

[Event "*** Titled Tuesday Blitz"]
[Site "Chess.com"]
[Date "2020.04.21"]
[Round "6"]
[White "GMNeiksans"]
[Black "GuerrieroFromLevant"]
[Result "1-0"]
[WhiteElo "2862"]
[BlackElo "2420"]
[TimeControl "180+1"]
[EndTime "11:08:31 PDT"]
[Termination "GMNeiksans won by resignation"]

1. f4 {[%clk 0:03:00.9]} 1... d5 {[%clk 0:02:59.5]} 2. Nf3 {[%clk 0:03:00.3]}
2... Nf6 {[%clk 0:03:00.1]} 3. g3 {[%clk 0:03:00]} 3... g6 {[%clk 0:03:00.7]} 4.
Bg2 {[%clk 0:02:59.6]} 4... Bg7 {[%clk 0:03:01.3]} 5. O-O {[%clk 0:02:59.5]}
5... O-O {[%clk 0:03:01.9]} 6. d3 {[%clk 0:02:59.6]} 6... c5 {[%clk 0:03:02]} 7.
c3 {[%clk 0:02:58.7]} 7... Nc6 {[%clk 0:03:02.2]} 8. Qe1 {[%clk 0:02:48.3]} 8...
d4 {[%clk 0:02:58.8]} 9. Na3 {[%clk 0:02:27.8]} 9... Nd5 {[%clk 0:02:52.9]} 10.
Bd2 {[%clk 0:02:27.4]} 10... b6 {[%clk 0:02:40.6]} 11. Nc4 {[%clk 0:02:25.9]}
11... Bb7 {[%clk 0:02:39.3]} 12. a4 {[%clk 0:02:25.7]} 12... Re8 {[%clk
0:02:31.8]} 13. e4 {[%clk 0:02:05.9]} 13... dxe3 {[%clk 0:02:28.9]} 14. Bxe3
{[%clk 0:02:01.9]} 14... Qc7 {[%clk 0:02:21.2]} 15. Rd1 {[%clk 0:01:56.3]} 15...
Rad8 {[%clk 0:02:20.3]} 16. Bc1 {[%clk 0:01:56.1]} 16... Ba6 {[%clk 0:02:04.2]}
17. Ng5 {[%clk 0:01:53.1]} 17... Bxc4 {[%clk 0:01:48.3]} 18. dxc4 {[%clk
0:01:52.3]} 18... Nf6 {[%clk 0:01:48.9]} 19. Qe2 {[%clk 0:01:43.8]} 19... Rxd1
{[%clk 0:01:34.2]} 20. Qxd1 {[%clk 0:01:34.7]} 20... Rd8 {[%clk 0:01:33.4]} 21.
Qe2 {[%clk 0:01:34.2]} 21... h6 {[%clk 0:01:32.3]} 22. Ne6 {[%clk 0:01:29.6]}
22... fxe6 {[%clk 0:01:18.4]} 23. Qxe6+ {[%clk 0:01:29.7]} 23... Kh7 {[%clk
0:01:18.9]} 24. Qxc6 {[%clk 0:01:28]} 24... Qxc6 {[%clk 0:01:19]} 25. Bxc6
{[%clk 0:01:28.9]} 25... Rd3 {[%clk 0:01:04.4]} 26. Re1 {[%clk 0:01:25.7]} 26...
Ng4 {[%clk 0:00:57.3]} 27. Bg2 {[%clk 0:01:18.6]} 27... e5 {[%clk 0:00:42.3]}
28. Bf1 {[%clk 0:01:01]} 28... Rd7 {[%clk 0:00:40.1]} 29. h3 {[%clk 0:01:01]}
29... Nf6 {[%clk 0:00:38.2]} 30. fxe5 {[%clk 0:01:01.3]} 30... Nh5 {[%clk
0:00:38.6]} 31. e6 {[%clk 0:01:01.6]} 31... Re7 {[%clk 0:00:38.7]} 32. g4 {[%clk
0:00:56.3]} 32... Nf6 {[%clk 0:00:35.4]} 33. Bf4 {[%clk 0:00:56]} 33... Ne8
{[%clk 0:00:35.3]} 34. Bg2 {[%clk 0:00:54.3]} 34... Bf6 {[%clk 0:00:35.5]} 35.
Bd5 {[%clk 0:00:52.9]} 35... Kg7 {[%clk 0:00:34.5]} 36. Kg2 {[%clk 0:00:53]}
36... Bh4 {[%clk 0:00:30.9]} 37. Rf1 {[%clk 0:00:52.3]} 37... Nf6 {[%clk
0:00:28.7]} 38. Be5 {[%clk 0:00:52.3]} 38... Re8 {[%clk 0:00:25.5]} 39. a5
{[%clk 0:00:47.5]} 39... bxa5 {[%clk 0:00:22.1]} 40. Ra1 {[%clk 0:00:46.6]}
40... Kf8 {[%clk 0:00:21.5]} 41. Rxa5 {[%clk 0:00:46]} 41... Ng8 {[%clk
0:00:21.6]} 42. Rxa7 {[%clk 0:00:44.6]} 42... Ne7 {[%clk 0:00:22.1]} 43. Bd6
{[%clk 0:00:44]} 43... Rd8 {[%clk 0:00:21.2]} 44. Bxc5 {[%clk 0:00:43.2]} 44...
Ke8 {[%clk 0:00:20.5]} 45. Ra8 {[%clk 0:00:39.3]} 45... Nxd5 {[%clk 0:00:19.4]}
46. Rxd8+ {[%clk 0:00:37.8]} 1-0

[Event "*** Titled Tuesday Blitz"]
[Site "Chess.com"]
[Date "2020.04.21"]
[Round "6"]
[White "Neimar24"]
[Black "Belka1989"]
[Result "1-0"]
[WhiteElo "2567"]
[BlackElo "2402"]
[TimeControl "180+1"]
[EndTime "11:08:31 PDT"]
[Termination "Neimar24 won by resignation"]

1. e4 {[%clk 0:03:00.9]} 1... e5 {[%clk 0:02:59.3]} 2. Nf3 {[%clk 0:02:59.4]}
2... Nc6 {[%clk 0:02:59.3]} 3. Bb5 {[%clk 0:02:59.3]} 3... a6 {[%clk 0:02:59.7]}
4. Bxc6 {[%clk 0:02:59.3]} 4... dxc6 {[%clk 0:03:00.6]} 5. O-O {[%clk
0:02:59.3]} 5... Bg4 {[%clk 0:03:00.6]} 6. h3 {[%clk 0:02:56.2]} 6... h5 {[%clk
0:03:00.7]} 7. d3 {[%clk 0:02:56.1]} 7... Bxf3 {[%clk 0:02:59.3]} 8. Qxf3 {[%clk
0:02:54.4]} 8... Bd6 {[%clk 0:02:59.2]} 9. Nd2 {[%clk 0:02:53.3]} 9... Qd7
{[%clk 0:02:58]} 10. Nc4 {[%clk 0:02:52.5]} 10... Ne7 {[%clk 0:02:55.3]} 11. a4
{[%clk 0:02:40.4]} 11... O-O-O {[%clk 0:02:46.6]} 12. b4 {[%clk 0:02:35.6]}
12... f6 {[%clk 0:02:38.4]} 13. b5 {[%clk 0:02:33.3]} 13... g5 {[%clk
0:02:36.5]} 14. bxa6 {[%clk 0:02:30.5]} 14... bxa6 {[%clk 0:02:34.6]} 15. Qxf6
{[%clk 0:02:19.6]} 15... g4 {[%clk 0:02:34.7]} 16. h4 {[%clk 0:02:16.1]} 16...
Rdf8 {[%clk 0:02:09.1]} 17. Nxe5 {[%clk 0:01:52.7]} 17... Rxf6 {[%clk
0:02:00.9]} 18. Nxd7 {[%clk 0:01:51.9]} 18... Kxd7 {[%clk 0:02:01.8]} 19. Bb2
{[%clk 0:01:52.3]} 19... Rhf8 {[%clk 0:02:02.4]} 20. e5 {[%clk 0:01:51.4]} 20...
Bxe5 {[%clk 0:01:56.5]} 21. Bxe5 {[%clk 0:01:49.9]} 21... Rf5 {[%clk 0:01:57.1]}
22. Bg3 {[%clk 0:01:42.6]} 22... Nd5 {[%clk 0:01:53.1]} 23. Rfe1 {[%clk
0:01:41.3]} 23... Nc3 {[%clk 0:01:43.7]} 24. Ra3 {[%clk 0:01:38.8]} 24... Rc5
{[%clk 0:01:37.3]} 25. Rb3 {[%clk 0:01:34.7]} 25... Nd5 {[%clk 0:01:08.3]} 26.
c4 {[%clk 0:01:32.3]} 26... Nb6 {[%clk 0:01:03.2]} 27. Rb2 {[%clk 0:00:41.2]}
27... Nxa4 {[%clk 0:00:51.8]} 28. Ra2 {[%clk 0:00:39.6]} 28... Nb6 {[%clk
0:00:45.8]} 29. Rxa6 {[%clk 0:00:39.4]} 29... Ra8 {[%clk 0:00:36.2]} 30. Rxa8
{[%clk 0:00:36]} 30... Nxa8 {[%clk 0:00:37.1]} 31. Ra1 {[%clk 0:00:33.6]} 31...
Nb6 {[%clk 0:00:26]} 32. Ra7 {[%clk 0:00:32.7]} 32... Ke6 {[%clk 0:00:24.9]} 33.
Rxc7 {[%clk 0:00:29.3]} 33... Nd7 {[%clk 0:00:24.2]} 34. Bf4 {[%clk 0:00:25.3]}
34... Nf6 {[%clk 0:00:15]} 35. Be3 {[%clk 0:00:23.8]} 35... Kd6 {[%clk
0:00:11.4]} 36. Rf7 {[%clk 0:00:20.9]} 1-0

[Event "*** Titled Tuesday Blitz"]
[Site "Chess.com"]
[Date "2020.04.21"]
[Round "6"]
[White "pooh2012"]
[Black "PauloCesarCosta_sad"]
[Result "1-0"]
[WhiteElo "2492"]
[BlackElo "2086"]
[TimeControl "180+1"]
[EndTime "11:08:31 PDT"]
[Termination "pooh2012 won on time"]

1. b3 {[%clk 0:03:00.9]} 1... Nf6 {[%clk 0:02:59.3]} 2. Bb2 {[%clk 0:03:01.3]}
2... g6 {[%clk 0:02:58.9]} 3. e4 {[%clk 0:03:00.9]} 3... d6 {[%clk 0:02:58.1]}
4. d3 {[%clk 0:02:52.5]} 4... Bg7 {[%clk 0:02:57.5]} 5. h4 {[%clk 0:02:52.7]}
5... c5 {[%clk 0:02:47.2]} 6. Ne2 {[%clk 0:02:51.4]} 6... Nc6 {[%clk 0:02:42.1]}
7. Nf4 {[%clk 0:02:43.6]} 7... h5 {[%clk 0:02:29.2]} 8. Nd5 {[%clk 0:02:35.7]}
8... O-O {[%clk 0:02:17.9]} 9. Nxf6+ {[%clk 0:02:34.4]} 9... Bxf6 {[%clk
0:02:18.1]} 10. Bxf6 {[%clk 0:02:30.9]} 10... exf6 {[%clk 0:02:18.3]} 11. Nc3
{[%clk 0:02:31.5]} 11... Be6 {[%clk 0:02:07.8]} 12. Qd2 {[%clk 0:02:29.6]} 12...
Nd4 {[%clk 0:02:03.4]} 13. Ne2 {[%clk 0:02:18.6]} 13... Nxe2 {[%clk 0:01:59.2]}
14. Bxe2 {[%clk 0:02:19.5]} 14... f5 {[%clk 0:01:39.1]} 15. exf5 {[%clk
0:02:16.7]} 15... Bxf5 {[%clk 0:01:39.3]} 16. O-O-O {[%clk 0:02:13.2]} 16... Qf6
{[%clk 0:01:33.8]} 17. Kb1 {[%clk 0:02:13.1]} 17... Rfe8 {[%clk 0:01:28.9]} 18.
Bf3 {[%clk 0:02:09.9]} 18... Rab8 {[%clk 0:01:19.3]} 19. Qf4 {[%clk 0:02:00.2]}
19... Qe5 {[%clk 0:01:14.3]} 20. Qg5 {[%clk 0:01:56.1]} 20... Qe7 {[%clk
0:01:12.4]} 21. Qd2 {[%clk 0:01:52.8]} 21... Qf6 {[%clk 0:01:07.4]} 22. Rde1
{[%clk 0:01:34.9]} 22... b6 {[%clk 0:00:57.5]} 23. Qf4 {[%clk 0:01:31.9]} 23...
Kg7 {[%clk 0:00:44.8]} 24. Bc6 {[%clk 0:01:26.5]} 24... Rxe1+ {[%clk 0:00:33.7]}
25. Rxe1 {[%clk 0:01:27.4]} 25... Bg4 {[%clk 0:00:12.9]} 26. Qg3 {[%clk
0:01:17.9]} 26... Rc8 {[%clk 0:00:08.5]} 27. Bd5 {[%clk 0:01:15.8]} 27... Rc7
{[%clk 0:00:07.3]} 28. f3 {[%clk 0:01:15.6]} 28... Bc8 {[%clk 0:00:03.5]} 29.
Re8 {[%clk 0:01:04.9]} 29... Bb7 {[%clk 0:00:03.3]} 30. Bxb7 {[%clk 0:01:01.2]}
30... Rxb7 {[%clk 0:00:03.6]} 31. Qe1 {[%clk 0:01:01.8]} 31... Rd7 {[%clk
0:00:03.4]} 32. g4 {[%clk 0:00:39.3]} 32... hxg4 {[%clk 0:00:02.8]} 33. fxg4
{[%clk 0:00:39.4]} 33... d5 {[%clk 0:00:03.1]} 34. h5 {[%clk 0:00:39.4]} 34...
g5 {[%clk 0:00:02.4]} 35. Re5 {[%clk 0:00:31.8]} 35... Rd6 {[%clk 0:00:01.8]}
36. Rf5 {[%clk 0:00:31.6]} 1-0

[Event "*** Titled Tuesday Blitz"]
[Site "Chess.com"]
[Date "2020.04.21"]
[Round "6"]
[White "emperor87"]
[Black "eljanov"]
[Result "1/2-1/2"]
[WhiteElo "2651"]
[BlackElo "2808"]
[TimeControl "180+1"]
[EndTime "11:08:32 PDT"]
[Termination "Game drawn by repetition"]

1. e4 {[%clk 0:03:00.9]} 1... c6 {[%clk 0:02:58.4]} 2. d4 {[%clk 0:03:00.7]}
2... d5 {[%clk 0:02:58]} 3. e5 {[%clk 0:03:01]} 3... Bf5 {[%clk 0:02:57.9]} 4.
h4 {[%clk 0:03:01.2]} 4... h5 {[%clk 0:02:57.5]} 5. Bd3 {[%clk 0:02:59.4]} 5...
Bxd3 {[%clk 0:02:57.2]} 6. Qxd3 {[%clk 0:02:59.5]} 6... Qa5+ {[%clk 0:02:57.1]}
7. c3 {[%clk 0:02:58.6]} 7... e6 {[%clk 0:02:54.2]} 8. Ne2 {[%clk 0:02:56.4]}
8... c5 {[%clk 0:02:49.2]} 9. O-O {[%clk 0:02:52.7]} 9... Nc6 {[%clk 0:02:48.2]}
10. Be3 {[%clk 0:02:51.1]} 10... Nh6 {[%clk 0:02:37.7]} 11. Nd2 {[%clk
0:02:49.8]} 11... Nf5 {[%clk 0:02:35.5]} 12. Nf3 {[%clk 0:02:49.7]} 12... Be7
{[%clk 0:02:31.8]} 13. g3 {[%clk 0:02:48.8]} 13... cxd4 {[%clk 0:01:59.8]} 14.
Nexd4 {[%clk 0:02:44.5]} 14... Ncxd4 {[%clk 0:01:56.8]} 15. Nxd4 {[%clk
0:02:37.5]} 15... g6 {[%clk 0:01:48.4]} 16. a4 {[%clk 0:02:35.3]} 16... a6
{[%clk 0:01:38]} 17. Kg2 {[%clk 0:02:28.3]} 17... Qc7 {[%clk 0:01:35.3]} 18. Nf3
{[%clk 0:02:27.1]} 18... Rc8 {[%clk 0:01:30.7]} 19. a5 {[%clk 0:02:26.2]} 19...
Qc4 {[%clk 0:01:30.4]} 20. Qd2 {[%clk 0:02:13.2]} 20... Qe4 {[%clk 0:01:29.2]}
21. Bf4 {[%clk 0:01:59.3]} 21... Rc4 {[%clk 0:01:16.3]} 22. Rh1 {[%clk
0:01:48.6]} 22... d4 {[%clk 0:01:05.5]} 23. Rhe1 {[%clk 0:01:30.2]} 23... Qc6
{[%clk 0:01:00.9]} 24. cxd4 {[%clk 0:01:27.1]} 24... Nxd4 {[%clk 0:00:52.9]} 25.
Qd3 {[%clk 0:01:24.5]} 25... O-O {[%clk 0:00:45.1]} 26. b3 {[%clk 0:01:24]}
26... Rc3 {[%clk 0:00:37.9]} 27. Qxd4 {[%clk 0:01:19.6]} 27... Qxf3+ {[%clk
0:00:38.4]} 28. Kg1 {[%clk 0:01:16.7]} 28... Rxb3 {[%clk 0:00:30.7]} 29. Rab1
{[%clk 0:01:11.8]} 29... Rd8 {[%clk 0:00:26.2]} 30. Qc4 {[%clk 0:01:12]} 30...
Rxb1 {[%clk 0:00:19.8]} 31. Rxb1 {[%clk 0:01:12]} 31... Kg7 {[%clk 0:00:18.8]}
32. Qc7 {[%clk 0:01:08.5]} 32... Bxh4 {[%clk 0:00:12.3]} 33. gxh4 {[%clk
0:01:02.6]} 33... Qxf4 {[%clk 0:00:03]} 34. Qxd8 {[%clk 0:01:01.5]} 34... Qg4+
{[%clk 0:00:03.2]} 35. Kf1 {[%clk 0:00:58.6]} 35... Qc4+ {[%clk 0:00:02.4]} 36.
Kg1 {[%clk 0:00:42.1]} 36... Qg4+ {[%clk 0:00:02.5]} 37. Kf1 {[%clk 0:00:40.6]}
37... Qc4+ {[%clk 0:00:02.3]} 38. Kg1 {[%clk 0:00:37.5]} 38... Qg4+ {[%clk
0:00:02]} 1/2-1/2